Workbook

Sheet sheet1
A1: 附件1：
A2: 雷山县事业单位2024年公开招聘工作人员综合成绩排名、入围体检名单
A3: 序号 | B3: 姓名 | C3: 招聘单位 | D3: 招聘岗位代码 | E3: 笔试成绩（笔试环节成绩=(职业能力倾向测验+综合应用能力)÷3） | F3: 面试成绩 | G3: 笔试折算分数（60%） | H3: 面试折算分数（40%） | I3: 综合成绩 | J3: 综合成绩排名 | K3: 是否入围体检 | L3: 备注
A4: 1 | B4: 杨桃云 | C4: 雷山县水利工程建设运行中心 | D4: 22614066101 | E4: 67.5 | F4: 83.3 | G4: =ROUND(E4*60%,2) -> 40.5 | H4: =ROUND(F4*40%,2) -> 33.32 | I4: =G4+H4 -> 73.82 | J4: 1 | K4: 是
A5: 2 | B5: 杨杰 | C5: 雷山县水利工程建设运行中心 | D5: 22614066101 | E5: 65.83 | F5: 79 | G5: 39.5 | H5: 31.6 | I5: 71.1 | J5: 2
A6: 3 | B6: 李宏林 | C6: 雷山县水利工程建设运行中心 | D6: 22614066101 | E6: 65.5 | F6: 77.7 | G6: 39.3 | H6: 31.08 | I6: 70.38 | J6: 3
A7: 4 | B7: 杨成武 | C7: 雷山县水质检测和水旱灾害防御站 | D7: 22614066201 | E7: 69.17 | F7: 78.8 | G7: 41.5 | H7: 31.52 | I7: 73.02 | J7: 1 | K7: 是
A8: 5 | B8: 张凉山 | C8: 雷山县水质检测和水旱灾害防御站 | D8: 22614066201 | E8: 61.33 | F8: 79.9 | G8: 36.8 | H8: 31.96 | I8: 68.76 | J8: 2
A9: 6 | B9: 潘存阳 | C9: 雷山县水质检测和水旱灾害防御站 | D9: 22614066201 | E9: 59.17 | F9: 78.9 | G9: 35.5 | H9: 31.56 | I9: 67.06 | J9: 3
A10: 7 | B10: 李立成 | C10: 雷山县人民医院 | D10: 22614066301 | F10: 79.8 | I10: 79.8 | J10: 1 | K10: 是 | L10: 直接入围面试
A11: 8 | B11: 杨菲菲 | C11: 雷山县人民医院 | D11: 22614066301 | F11: 71.9 | I11: 71.9 | J11: 2 | K11: 是 | L11: 直接入围面试
A12: 9 | B12: 李成东 | C12: 雷山县人民医院 | D12: 22614066301 | F12: 71.4 | I12: 71.4 | J12: 3 | K12: 是 | L12: 直接入围面试
A13: 10 | B13: 文子奇 | C13: 雷山县人民医院 | D13: 22614066301 | F13: 56.8 | I13: 56.8 | J13: 4 | L13: 直接入围面试
A14: 11 | B14: 文正福 | C14: 雷山县人民医院 | D14: 22614066301 | F14: 缺考 | I14: 0 | J14: 5 | L14: 直接入围面试
A15: 12 | B15: 吴明华 | C15: 雷山县政府投资项目预算评审服务中心 | D15: 22614066401 | E15: 68.33 | F15: 81.1 | G15: =ROUND(E15*60%,2) -> 41 | H15: =ROUND(F15*40%,2) -> 32.44 | I15: =G15+H15 -> 73.44 | J15: 1 | K15: 是
A16: 13 | B16: 杨进 | C16: 雷山县政府投资项目预算评审服务中心 | D16: 22614066401 | E16: 62.83 | F16: 86 | G16: 37.7 | H16: 34.4 | I16: 72.1 | J16: 2 | K16: 是
A17: 14 | B17: 杨正英 | C17: 雷山县政府投资项目预算评审服务中心 | D17: 22614066401 | E17: 64.67 | F17: 82.3 | G17: 38.8 | H17: 32.92 | I17: 71.72 | J17: 3
A18: 15 | B18: 鲍志康 | C18: 雷山县政府投资项目预算评审服务中心 | D18: 22614066401 | E18: 64.33 | F18: 82.2 | G18: 38.6 | H18: 32.88 | I18: 71.48 | J18: 4
A19: 16 | B19: 张良伟 | C19: 雷山县政府投资项目预算评审服务中心 | D19: 22614066401 | E19: 64.67 | F19: 76 | G19: 38.8 | H19: 30.4 | I19: 69.2 | J19: 5
A20: 17 | B20: 柏杨 | C20: 雷山县政府投资项目预算评审服务中心 | D20: 22614066401 | E20: 64.33 | F20: 75.6 | G20: 38.6 | H20: 30.24 | I20: 68.84 | J20: 6
A21: 18 | B21: 李芳芳 | C21: 雷山县粮食和物资储备服务中心 | D21: 22614066501 | E21: 65 | F21: 83.4 | G21: 39 | H21: 33.36 | I21: 72.36 | J21: 1 | K21: 是
A22: 19 | B22: 吴兴宏 | C22: 雷山县粮食和物资储备服务中心 | D22: 22614066501 | E22: 65.33 | F22: 81.4 | G22: 39.2 | H22: 32.56 | I22: 71.76 | J22: 2
A23: 20 | B23: 潘晓丽 | C23: 雷山县粮食和物资储备服务中心 | D23: 22614066501 | E23: 65 | F23: 69.6 | G23: 39 | H23: 27.84 | I23: 66.84 | J23: 3
A24: 21 | B24: 杨培芝 | C24: 雷山县粮食和物资储备服务中心 | D24: 22614066501 | E24: 68 | F24: 缺考 | G24: 40.8 | I24: 40.8 | J24: 4
A25: 22 | B25: 金语 | C25: 雷山县永乐镇乡村振兴工作站 | D25: 22614066601 | E25: 65.83 | F25: 83.6 | G25: 39.5 | H25: =ROUND(F25*40%,2) -> 33.44 | I25: =G25+H25 -> 72.94 | J25: 1 | K25: 是
A26: 23 | B26: 杨冰冰 | C26: 雷山县永乐镇乡村振兴工作站 | D26: 22614066601 | E26: 63.33 | F26: 82.8 | G26: 38 | H26: =ROUND(F26*40%,2) -> 33.12 | I26: =G26+H26 -> 71.12 | J26: 2
A27: 24 | B27: 聂洋 | C27: 雷山县永乐镇乡村振兴工作站 | D27: 22614066601 | E27: 60.83 | F27: 71.4 | G27: 36.5 | H27: =ROUND(F27*40%,2) -> 28.56 | I27: =G27+H27 -> 65.06 | J27: 3
A28: 25 | B28: 杨秀一 | C28: 雷山县大塘镇财政所 | D28: 22614066701 | E28: 61.5 | F28: 84 | G28: 36.9 | H28: =ROUND(F28*40%,2) -> 33.6 | I28: =G28+H28 -> 70.5 | J28: 1 | K28: 是
A29: 26 | B29: 余清兰 | C29: 雷山县大塘镇财政所 | D29: 22614066701 | E29: 53 | F29: 75 | G29: 31.8 | H29: =ROUND(F29*40%,2) -> 30 | I29: =G29+H29 -> 61.8 | J29: 2
A30: 27 | B30: 李安琪 | C30: 雷山县大塘镇财政所 | D30: 22614066701 | E30: 66 | F30: 缺考 | G30: 39.6 | I30: 39.6 | J30: 3
A31: 28 | B31: 罗朝礼 | C31: 雷山县达地水族乡综治中心（网格化管理中心） | D31: 22614066801 | E31: 53.33 | F31: 84.2 | G31: 32 | H31: =ROUND(F31*40%,2) -> 33.68 | I31: =G31+H31 -> 65.68 | J31: 1 | K31: 是
A32: 29 | B32: 朱进彪 | C32: 雷山县达地水族乡综治中心（网格化管理中心） | D32: 22614066801 | E32: 39.17 | F32: 78.2 | G32: 23.5 | H32: =ROUND(F32*40%,2) -> 31.28 | I32: =G32+H32 -> 54.78 | J32: 2
A33: 30 | B33: 余世生 | C33: 雷山县达地水族乡综治中心（网格化管理中心） | D33: 22614066801 | E33: 47.67 | F33: 缺考 | G33: 28.6 | I33: 28.6 | J33: 3
A34: 31 | B34: 潘贵英 | C34: 雷山县望丰乡财政所 | D34: 22614066901 | E34: 63.67 | F34: 83 | G34: 38.2 | H34: =ROUND(F34*40%,2) -> 33.2 | I34: =G34+H34 -> 71.4 | J34: 1 | K34: 是
A35: 32 | B35: 杨川 | C35: 雷山县望丰乡财政所 | D35: 22614066901 | E35: 62.5 | F35: 81.2 | G35: 37.5 | H35: 32.48 | I35: 69.98 | J35: 2
A36: 33 | B36: 吴方凯 | C36: 雷山县望丰乡财政所 | D36: 22614066901 | E36: 65.5 | F36: 76.4 | G36: 39.3 | H36: 30.56 | I36: 69.86 | J36: 3
A37: 34 | B37: 毛志锋 | C37: 雷山县望丰乡财政所 | D37: 22614066902 | E37: 50.83 | F37: 83.2 | G37: 30.5 | H37: 33.28 | I37: 63.78 | J37: 1 | K37: 是
A38: 35 | B38: 文妍睎 | C38: 雷山县望丰乡财政所 | D38: 22614066902 | E38: 45 | F38: 79.8 | G38: 27 | H38: 31.92 | I38: 58.92 | J38: 2
A39: 36 | B39: 姜永英 | C39: 雷山县望丰乡财政所 | D39: 22614066902 | E39: 42 | F39: 78.2 | G39: 25.2 | H39: 31.28 | I39: 56.48 | J39: 3
A40: 37 | B40: 张钦 | C40: 雷山县龙头街道退役军人服务站 | D40: 22614067001 | E40: 59.33 | F40: 86.2 | G40: 35.6 | H40: 34.48 | I40: 70.08 | J40: 1 | K40: 是
A41: 38 | B41: 刘炳珍 | C41: 雷山县龙头街道退役军人服务站 | D41: 22614067001 | E41: 60.83 | F41: 75.4 | G41: 36.5 | H41: 30.16 | I41: 66.66 | J41: 2
A42: 39 | B42: 顾业勋 | C42: 雷山县龙头街道退役军人服务站 | D42: 22614067001 | E42: 60 | F42: 65.6 | G42: 36 | H42: 26.24 | I42: 62.24 | J42: 3
A43: 40 | B43: 吴雯娟 | C43: 雷山县融媒体中心 | D43: 22614067101 | E43: 50.17 | F43: 87.67 | G43: 30.1 | H43: 35.07 | I43: 65.17 | J43: 1 | K43: 是 | L43: 先面试后笔试 岗位
A44: 41 | B44: 李苏萍 | C44: 雷山县融媒体中心 | D44: 22614067101 | E44: 37.33 | F44: 91.67 | G44: 22.4 | H44: 36.67 | I44: 59.07 | J44: 2 | L44: 先面试后笔试 岗位
A45: 42 | B45: 杨宝棋 | C45: 雷山县融媒体中心 | D45: 22614067101 | F45: 缺考 | I45: 0 | J45: 3 | L45: 先面试后笔试 岗位
